bitfinex/quotes_SOLUSD_20240908
["timestamp","ask_amount","ask_price","bid_price","bid_amount"]
[1725764673335,69.2911063,128.7,128.64,15.3927]
[1725764675566,68.7911063,128.7,128.64,15.3927]
[1725764678539,68.2911063,128.7,128.64,15.3927]
[1725764679655,44.8811063,128.7,128.64,15.3927]
[1725764680243,23.41,128.71,128.64,15.3927]
[1725764681739,45.0,128.7,128.64,15.3927]
[1725764684154,68.41,128.71,128.64,15.3927]
[1725764688263,76.1794,128.71,128.64,15.3927]
[1725764688464,1.94352872,128.7,128.64,15.3927]
[1725764688770,76.1794,128.71,128.64,15.3927]
[1725764688970,23.41,128.69,128.64,15.3927]
[1725764689151,45.0,128.68,128.64,15.3927]
[1725764690187,23.41,128.7,128.64,15.3927]
[1725764690188,68.41,128.69,128.64,15.3927]
[1725764691566,45.0,128.69,128.64,15.3927]
[1725764693994,23.41,128.68,128.64,15.3927]
[1725764694190,45.0,128.67,128.64,15.3927]
[1725764700400,29.4924,128.72,128.64,15.3927]
[1725764701777,68.41,128.71,128.64,15.3927]
[1725764715515,23.41,128.69,128.64,15.3927]
[1725764715813,23.41,128.66,128.61,16.4855]
[1725764716013,70.35406857,128.65,128.57,16.4855]
[1725764716202,1.94430484,128.64,128.58,1.55874916]
[1725764716397,70.35430484,128.64,128.57,16.4855]
[1725764717109,1.94440469,128.63,128.57,16.4855]
[1725764717706,68.41,128.64,128.57,16.4855]
[1725764724291,9.15599719,128.68,128.57,26.86635506]
[1725764724497,40.69235976,128.7,128.58,20.0]
[1725764724696,9.15599719,128.69,128.58,20.0]
[1725764725394,23.39,128.67,128.58,20.0]
[1725764725799,45.0,128.66,128.58,20.0]
[1725764727323,68.39,128.66,128.58,20.0]
[1725764727715,45.0,128.66,128.58,20.0]
[1725764727921,23.39,128.66,128.58,20.0]
[1725764728123,45.0,128.65,128.57,26.86635506]
[1725764728835,45.0,128.65,128.58,20.0]
[1725764729209,68.39,128.66,128.58,20.0]
[1725764736516,45.0,128.66,128.6,6.2689]
[1725764736924,68.39,128.66,128.6,6.2689]
[1725764738221,45.0,128.66,128.6,6.2689]
[1725764738627,45.0,128.67,128.6,6.2689]
[1725764739530,23.39,128.69,128.61,27.87709089]
[1725764739733,23.39,128.69,128.61,46.71225506]
[1725764740827,45.0,128.68,128.61,46.71225506]
[1725764741028,23.39,128.69,128.61,46.71225506]
[1725764741452,1.94349675,128.68,128.61,36.3314]
[1725764741636,1.94379631,128.67,128.61,36.3314]
[1725764745157,1.94377905,128.66,128.61,16.3314]
[1725764751747,25.33377905,128.66,128.61,16.3314]
[1725764751955,45.0,128.65,128.61,16.3314]
[1725764754841,68.39,128.65,128.61,16.3314]
[1725764755050,68.39,128.65,128.58,16.3395]
[1725764755051,23.39,128.63,128.58,16.3395]
[1725764755346,2.87551158,128.67,128.58,16.3395]
[1725764755347,70.33448642,128.62,128.58,16.3395]
[1725764755548,70.33448642,128.62,128.55,16.3395]
[1725764760655,68.39,128.62,128.55,16.3395]
[1725764762450,45.0,128.62,128.55,16.3395]
[1725764762755,1.94441515,128.62,128.55,16.3395]
[1725764763143,45.0,128.63,128.55,16.3395]
[1725764765860,46.94437975,128.63,128.55,16.3395]
[1725764766247,45.0,128.63,128.55,16.3395]
[1725764766768,45.0,128.63,128.57,15.0321]
[1725764766971,45.0,128.64,128.57,15.0321]
[1725764768139,68.39,128.64,128.57,15.0321]
[1725764769470,45.0,128.64,128.57,15.0321]
[1725764769672,68.39,128.64,128.57,15.0321]
[1725764771749,1.94438414,128.63,128.57,15.0321]
[1725764773241,85.31969719,128.64,128.57,15.0321]
[1725764773446,76.1637,128.64,128.57,15.0321]
[1725764776364,68.39,128.64,128.57,15.0321]
[1725764779478,45.0,128.64,128.57,15.0321]
[1725764779666,23.39,128.66,128.57,15.0321]
[1725764779851,68.39,128.65,128.57,15.0321]
[1725764787173,45.0,128.65,128.57,15.0321]
[1725764787377,68.39,128.66,128.57,15.0321]
[1725764788050,1.94397336,128.65,128.57,15.0321]
[1725764788259,1.94412581,128.64,128.57,15.0321]
[1725764788452,77.54599719,128.66,128.57,15.0321]
[1725764788865,1.94413682,128.65,128.57,15.0321]
[1725764789153,1.94413569,128.64,128.57,15.0321]
[1725764789762,77.54599719,128.66,128.57,15.0321]
[1725764791978,85.31839719,128.66,128.57,15.0321]
[1725764792283,1.94425887,128.65,128.57,15.0321]
[1725764792469,85.31839719,128.66,128.57,15.0321]
[1725764792470,1.94425603,128.64,128.57,15.0321]
[1725764793673,1.94423503,128.63,128.57,15.0321]
[1725764794296,70.33423503,128.63,128.57,15.0321]
[1725764795162,1.94436201,128.62,128.57,15.0321]
[1725764795367,45.0,128.62,128.57,15.0321]
[1725764815105,1.94430625,128.61,128.57,15.0321]
[1725764815403,1.94450793,128.6,128.57,15.0321]
[1725764815577,46.94450793,128.6,128.57,15.0321]
[1725764816576,45.0,128.6,128.57,15.0321]
[1725764816985,45.0,128.6,128.54,15.57]
[1725764820504,45.0,128.6,128.55,10.38085506]
[1725764821179,45.0,128.6,128.54,15.57]
[1725764825889,45.0,128.6,128.55,20.0]
[1725764826098,23.39,128.64,128.57,16.80335506]
[1725764826696,23.39,128.64,128.57,6.4225]
[1725764827180,23.39,128.64,128.56,15.3693]
[1725764827389,1.94438031,128.63,128.56,15.3693]
[1725764827802,23.39,128.62,128.56,15.3693]
[1725764828100,70.33463581,128.61,128.56,15.3693]
[1725764828307,45.0,128.6,128.56,15.3693]
[1725764831797,68.39,128.6,128.56,15.3693]
[1725764839203,23.39,128.62,128.56,15.3693]
[1725764840410,23.39,128.63,128.56,15.3693]
[1725764840614,23.39,128.61,128.56,15.3693]
[1725764840787,45.0,128.6,128.56,15.3693]
[1725764848313,29.4596,128.67,128.59,15.4672]
[1725764849814,23.39,128.65,128.59,15.4672]
[1725764850017,45.0,128.64,128.59,15.4672]
[1725764853301,68.39,128.65,128.59,15.4672]
[1725764860193,45.0,128.65,128.59,15.4672]
[1725764860602,45.0,128.65,128.6,20.0]
[1725764862218,45.0,128.66,128.6,20.0]
[1725764866513,68.39,128.67,128.6,20.0]
[1725764870930,68.39,128.67,128.61,10.38085506]
[1725764871228,23.39,128.7,128.62,22.4553]
[1725764871408,23.39,128.7,128.62,23.62037043]
[1725764872345,45.0,128.69,128.62,23.62037043]
[1725764872833,25.33337211,128.7,128.62,22.4553]
[1725764873227,23.39,128.7,128.62,22.4553]
[1725764873424,1.94356759,128.69,128.62,22.4553]
[1725764873622,1.94356759,128.69,128.62,16.3714]
[1725764874023,23.39,128.68,128.62,16.3714]
[1725764874319,70.33373262,128.67,128.62,16.3714]
[1725764875423,68.39,128.67,128.62,16.3714]
[1725764888836,1.94372425,128.66,128.62,16.3714]
[1725764890837,1.94372425,128.66,128.6,20.0]
[1725764895426,68.39,128.67,128.6,20.0]
[1725764897449,68.39,128.67,128.59,21.9196]
[1725764899157,23.39,128.65,128.59,21.9196]
[1725764899460,23.39,128.63,128.59,15.8357]
[1725764899651,45.0,128.62,128.59,15.8357]
[1725764901027,1.94426464,128.61,128.59,15.8357]
[1725764901454,45.0,128.62,128.59,15.8357]
[1725764904641,1.94426683,128.61,128.59,15.8357]
[1725764904966,45.0,128.62,128.59,15.8357]
[1725764906747,1.94428338,128.61,128.59,15.8357]
[1725764907130,45.0,128.62,128.59,15.8357]
[1725764916146,1.94425621,128.61,128.57,15.8673]
[1725764916360,1.94445436,128.6,128.57,15.8673]
[1725764917261,68.39,128.62,128.57,15.8673]
[1725764917262,1.94445276,128.61,128.57,15.8673]
[1725764917469,70.33445206,128.62,128.57,15.8673]
[1725764918454,68.39,128.62,128.57,15.8673]
[1725764918847,1.94445197,128.61,128.57,15.8673]
[1725764919765,68.39,128.62,128.57,15.8673]
[1725764932075,23.39,128.64,128.57,26.24815506]
[1725764932962,23.39,128.66,128.57,26.24815506]
[1725764933374,68.39,128.65,128.57,26.24815506]
[1725764936882,1.94401025,128.64,128.57,15.8673]
[1725764937269,68.39,128.65,128.57,15.8673]
[1725764940957,68.39,128.65,128.57,26.24815506]
[1725764941158,68.39,128.65,128.58,20.0]
[1725764943376,23.39,128.67,128.59,32.41945506]
[1725764943959,25.33376268,128.67,128.59,32.41945506]
[1725764944383,1.94376268,128.67,128.59,32.41945506]
[1725764944583,23.39,128.66,128.59,32.41945506]
[1725764944886,68.39,128.65,128.59,32.41945506]
[1725764945062,68.39,128.65,128.59,22.0386]
[1725764950664,45.0,128.65,128.59,22.0386]
[1725764950883,45.0,128.65,128.59,32.41945506]
[1725764952078,45.0,128.65,128.6,20.0]
[1725764954494,45.0,128.65,128.61,26.18475506]
[1725764957685,45.0,128.65,128.61,15.8039]
[1725764970798,23.39,128.64,128.61,15.8039]
[1725764971002,45.0,128.65,128.61,15.8039]
[1725764971003,45.0,128.63,128.61,15.8039]
[1725764971305,45.0,128.65,128.61,15.8039]
[1725764976691,23.39,128.69,128.61,16.96922212]
[1725764977289,23.39,128.69,128.61,15.8039]
[1725764977505,23.39,128.69,128.62,10.38085506]
[1725764978909,45.0,128.68,128.62,10.38085506]
[1725764981309,45.0,128.69,128.63,22.2563]
[1725764983692,45.0,128.69,128.64,10.38085506]
[1725764991397,45.0,128.7,128.64,10.38085506]
[1725764992316,68.39,128.71,128.64,10.38085506]
[1725764995801,68.39,128.71,128.64,11.5441619]
[1725764999706,68.39,128.71,128.64,1.16330684]
[1725765000015,68.39,128.71,128.64,30.38085506]
[1725765002304,1.94305355,128.7,128.64,20.0]
[1725765002828,68.39,128.71,128.64,20.0]
[1725765003411,45.0,128.71,128.64,30.38085506]
[1725765003705,23.39,128.73,128.65,16.1214]
[1725765004928,23.39,128.71,128.65,16.1214]
[1725765005127,45.0,128.7,128.65,16.1214]
[1725765005331,70.33307149,128.7,128.65,16.1214]
[1725765009224,68.39,128.7,128.65,16.1214]
[1725765011913,23.39,128.72,128.65,16.1214]
[1725765013024,23.39,128.73,128.65,16.1214]
[1725765013528,23.39,128.72,128.65,16.1214]
[1725765014403,23.39,128.73,128.65,16.1214]
[1725765014804,68.39,128.72,128.65,16.1214]
[1725765016007,23.38,128.74,128.66,10.38085506]
[1725765016236,23.38,128.74,128.67,21.818]
[1725765017028,23.38,128.76,128.68,10.38085506]
[1725765017203,23.38,128.76,128.68,30.38085506]
[1725765018132,23.38,128.76,128.68,10.38085506]
[1725765018904,45.0,128.75,128.68,10.38085506]
[1725765020938,68.38,128.75,128.67,21.818]
[1725765021108,68.38,128.75,128.68,20.0]
[1725765022932,45.0,128.75,128.68,20.0]
[1725765029945,45.0,128.75,128.69,15.105]
[1725765031346,45.0,128.74,128.69,15.105]
[1725765031553,70.32228951,128.76,128.69,15.105]
[1725765032429,68.38,128.76,128.69,15.105]
[1725765041160,70.32228925,128.76,128.69,15.105]
[1725765042241,68.38,128.76,128.69,15.105]
[1725765046164,45.0,128.76,128.69,15.105]
[1725765046472,26.22719069,128.78,128.69,15.105]
[1725765046473,45.0,128.75,128.69,15.105]
[1725765046769,45.0,128.77,128.69,15.105]
[1725765049550,1.9421267,128.76,128.69,15.105]
[1725765056261,68.38,128.77,128.69,15.105]
[1725765057369,76.1459,128.77,128.69,15.105]
[1725765063085,23.38,128.75,128.69,15.105]
[1725765063273,23.38,128.72,128.66,16.4331]
[1725765063467,1.9432932,128.71,128.66,16.4331]
[1725765063666,25.32327822,128.7,128.66,16.4331]
[1725765063871,68.38,128.69,128.66,16.4331]
[1725765064558,68.38,128.69,128.62,16.4331]
[1725765064775,68.38,128.69,128.59,6.2942]
[1725765064776,23.38,128.64,128.59,16.4331]
[1725765065062,25.32426221,128.64,128.59,16.4331]
[1725765065263,68.38,128.63,128.59,16.4331]
[1725765065469,68.38,128.63,128.56,6.2942]
[1725765065470,1.94429656,128.62,128.56,21.8075]
[1725765065675,76.1543,128.63,128.56,21.8075]
[1725765066570,1.94461945,128.62,128.56,21.8075]
[1725765066775,68.38,128.63,128.56,21.8075]
[1725765067887,45.0,128.63,128.56,21.8075]
[1725765069764,45.0,128.64,128.56,21.8075]
[1725765072787,45.0,128.64,128.57,20.0]
[1725765074395,45.0,128.64,128.58,15.5133]
[1725765074575,45.0,128.64,128.59,30.38085506]
[1725765076291,33.16601539,128.69,128.59,30.38085506]
[1725765076674,1.94364302,128.68,128.59,30.38085506]
[1725765076992,1.94367674,128.67,128.59,30.38085506]
[1725765077503,68.38,128.68,128.59,30.38085506]
[1725765082696,23.38,128.71,128.62,15.5133]
[1725765083282,1.94330645,128.7,128.62,15.5133]
[1725765083779,70.32330645,128.7,128.62,15.5133]
[1725765089685,76.15,128.7,128.62,15.5133]
[1725765091116,23.38,128.72,128.64,6.6256]
[1725765091287,23.38,128.72,128.65,15.8149]
[1725765091982,1.94305752,128.71,128.65,15.8149]
[1725765092180,1.94322015,128.7,128.65,15.8149]
[1725765093404,68.38,128.71,128.65,15.8149]
[1725765094791,70.32316614,128.71,128.65,15.8149]
[1725765094985,50.53591089,128.75,128.66,15.8149]
[1725765095190,23.38,128.74,128.67,20.0]
[1725765096089,25.32284375,128.77,128.66,15.8149]
[1725765096283,23.38,128.73,128.66,15.8149]
[1725765096784,68.38,128.72,128.66,15.8149]
[1725765101884,45.0,128.72,128.66,15.8149]
[1725765102092,45.0,128.73,128.66,15.8149]
[1725765103213,68.38,128.74,128.66,15.8149]
[1725765108995,1.9428312,128.73,128.66,15.8149]
[1725765110119,68.38,128.74,128.66,15.8149]
[1725765123422,45.0,128.74,128.66,15.8149]
[1725765123633,68.38,128.75,128.68,16.4995]
[1725765125129,23.38,128.75,128.68,16.4995]
[1725765126328,46.94250226,128.74,128.68,16.4995]
[1725765126839,45.0,128.74,128.68,16.4995]
[1725765129519,1.94249664,128.73,128.68,16.4995]
[1725765130549,1.94251772,128.74,128.68,16.4995]
[1725765130841,1.94251842,128.73,128.68,16.4995]
[1725765131835,1.94251513,128.74,128.68,16.4995]
[1725765132050,1.94251436,128.73,128.68,16.4995]
[1725765133530,1.9425154,128.74,128.68,16.4995]
[1725765133727,1.94251437,128.73,128.68,16.4995]
[1725765134643,45.0,128.75,128.68,16.4995]
[1725765134824,70.32251569,128.75,128.68,16.4995]
[1725765139743,68.38,128.75,128.68,16.4995]
[1725765141221,23.38,128.77,128.68,16.4995]
[1725765141428,23.38,128.77,128.7,15.3814]
[1725765141747,23.38,128.77,128.71,6.2788]
[1725765142323,23.38,128.78,128.71,6.2788]
[1725765142722,68.38,128.77,128.71,6.2788]
[1725765147149,1.94220278,128.76,128.71,6.2788]
[1725765147446,68.38,128.77,128.71,6.2788]
[1725765160945,1.942244,128.76,128.71,6.2788]
[1725765164457,68.38,128.77,128.71,6.2788]
[1725765172769,1.94229746,128.76,128.71,6.2788]
[1725765173962,68.38,128.77,128.71,6.2788]
[1725765180656,0.7750593,128.81,128.72,36.0392]
[1725765180859,0.7750593,128.81,128.72,46.42005506]
[1725765181555,24.1550593,128.81,128.72,46.42005506]
[1725765182778,68.38,128.8,128.72,46.42005506]
[1725765184682,68.38,128.8,128.72,36.0392]
[1725765188253,68.38,128.8,128.72,46.42005506]
[1725765198591,68.38,128.8,128.72,26.42005506]
[1725765204080,1.94177779,128.8,128.74,6.6005]
[1725765204281,1.94183604,128.79,128.74,6.6005]
[1725765204597,1.94180135,128.8,128.74,6.6005]
[1725765204892,24.1550593,128.81,128.74,6.6005]
[1725765205097,0.7750593,128.81,128.74,6.6005]
[1725765205392,1.94177732,128.8,128.74,6.6005]
[1725765206270,1.94177775,128.79,128.74,6.6005]
[1725765206478,69.1550593,128.81,128.74,6.6005]
[1725765209771,1.94182709,128.8,128.74,6.6005]
[1725765210384,69.1550593,128.81,128.74,6.6005]
[1725765216784,1.94183264,128.8,128.74,6.6005]
[1725765216988,1.94178129,128.79,128.74,6.6005]
[1725765219703,69.1550593,128.81,128.74,6.6005]
[1725765222005,1.94174394,128.8,128.74,6.6005]
[1725765222202,1.94175052,128.79,128.74,6.6005]
[1725765222699,69.1550593,128.81,128.74,6.6005]
[1725765223090,1.94174883,128.8,128.74,6.6005]
[1725765224506,25.32175002,128.79,128.74,6.6005]
[1725765224689,45.0,128.78,128.74,6.6005]
[1725765225711,1.94199877,128.77,128.74,6.6005]
[1725765226012,46.94199183,128.78,128.74,6.6005]
[1725765227011,68.38,128.79,128.74,6.6005]
[1725765227910,70.32198711,128.79,128.74,6.6005]
[1725765230004,68.38,128.79,128.74,6.6005]
[1725765231922,70.32199241,128.79,128.74,6.6005]
[1725765232423,68.38,128.79,128.74,6.6005]
[1725765234099,68.38,128.79,128.73,15.6985]
[1725765234345,1.94210375,128.78,128.73,15.6985]
[1725765236528,71.22617612,128.79,128.73,15.6985]
[1725765239308,1.94208968,128.78,128.73,15.6985]
[1725765239611,23.38,128.77,128.73,15.6985]
[1725765239817,70.32230366,128.76,128.73,15.6985]
[1725765240004,70.32230366,128.76,128.7,16.2205]
[1725765241112,68.38,128.76,128.7,16.2205]
[1725765242514,23.38,128.78,128.7,16.2205]
[1725765242716,23.38,128.77,128.71,6.2568]
[1725765243922,45.0,128.76,128.71,6.2568]
[1725765248224,70.3222532,128.77,128.71,6.2568]
[1725765248428,68.38,128.77,128.71,6.2568]
[1725765274347,23.38,128.78,128.71,6.2568]
[1725765276041,45.0,128.77,128.71,6.2568]
[1725765280632,31.1448,128.79,128.71,6.2568]
[1725765280840,1.94210747,128.78,128.71,6.2568]
[1725765286952,68.38,128.79,128.72,15.7983]
[1725765291952,70.32192089,128.79,128.72,15.7983]
[1725765292467,68.38,128.79,128.72,15.7983]
[1725765293332,70.32191904,128.79,128.72,15.7983]
[1725765293956,68.38,128.79,128.72,15.7983]
[1725765294459,70.32191879,128.79,128.72,15.7983]
[1725765299155,68.38,128.79,128.72,15.7983]
[1725765299359,45.0,128.79,128.72,15.7983]
[1725765299567,11.36253452,128.81,128.72,15.7983]
[1725765299568,45.0,128.8,128.72,15.7983]
[1725765300463,24.1550593,128.81,128.73,15.6976]
[1725765300769,24.1550593,128.81,128.75,15.6976]
[1725765301058,24.1550593,128.81,128.63,2.91368437]
[1725765301059,0.7750593,128.81,128.76,16.91255506]
[1725765301264,0.7750593,128.81,128.77,15.6976]
[1725765302151,0.7750593,128.81,128.78,6.5317]
[1725765302360,0.7750593,128.81,128.8,15.6976]
[1725765311850,0.7750593,128.81,128.76,15.1143]
[1725765319052,0.7750593,128.81,128.72,31.97675506]
[1725765319381,8.42460724,128.8,128.72,15.1143]
[1725765319673,68.38,128.79,128.72,15.1143]
[1725765322885,6.483,128.8,128.73,1.16168886]
[1725765323070,6.483,128.8,128.73,20.0]
[1725765324173,45.0,128.79,128.73,20.0]
[1725765330479,46.94186718,128.79,128.73,20.0]
[1725765330682,45.0,128.79,128.73,20.0]
[1725765330983,46.9418338,128.79,128.73,20.0]
[1725765331386,45.0,128.79,128.73,20.0]
[1725765333264,45.0,128.79,128.72,15.1143]
[1725765333485,45.0,128.79,128.73,20.0]
[1725765338779,52.7646,128.79,128.73,20.0]
[1725765338971,45.0,128.79,128.73,20.0]
[1725765339292,45.0,128.79,128.69,6.4816]
[1725765339293,31.1263,128.76,128.69,16.2606]
[1725765339477,78.06990265,128.75,128.69,16.2606]
[1725765339667,84.27760265,128.75,128.66,33.27525506]
[1725765340198,76.51020265,128.75,128.66,33.27525506]
[1725765340889,74.5677,128.75,128.67,20.0]
[1725765342968,82.3349,128.75,128.67,20.0]
[1725765343175,82.3349,128.75,128.65,20.0]
[1725765345591,29.5677,128.75,128.65,20.0]
[1725765346930,68.36,128.74,128.65,20.0]
[1725765351289,45.0,128.74,128.66,10.38085506]
[1725765351482,6.2077,128.75,128.68,10.38085506]
[1725765351693,6.2077,128.75,128.69,20.0]
[1725765353872,45.0,128.74,128.69,20.0]
[1725765365999,68.36,128.74,128.69,20.0]
[1725765366203,68.36,128.74,128.65,25.74425506]
[1725765366499,68.36,128.74,128.66,20.0]
[1725765366906,39.1384,128.73,128.66,20.0]
[1725765367112,45.0,128.72,128.66,20.0]
[1725765372382,45.0,128.72,128.65,15.3634]
[1725765372383,23.36,128.7,128.61,15.3634]
[1725765372583,68.36,128.69,128.61,15.3634]
[1725765372817,1.94339298,128.68,128.61,15.3634]
[1725765372993,68.36,128.69,128.61,15.3634]
[1725765373882,68.36,128.69,128.62,20.0]
[1725765375102,45.0,128.69,128.62,20.0]
[1725765375503,45.0,128.7,128.62,30.38085506]
[1725765376208,68.36,128.7,128.62,20.0]
[1725765382219,76.1301,128.7,128.62,20.0]
[1725765388199,23.36,128.68,128.58,16.3819]
[1725765388405,17.79057426,128.69,128.58,16.3819]
[1725765388406,23.36,128.66,128.59,20.0]
[1725765388602,1.94396202,128.65,128.59,20.0]
[1725765388807,1.94404019,128.64,128.59,20.0]
[1725765389122,46.94404019,128.64,128.59,20.0]
[1725765390214,23.36,128.64,128.58,16.3819]
[1725765390395,45.0,128.63,128.58,16.3819]
[1725765390794,45.0,128.64,128.58,16.3819]
[1725765392898,68.36,128.64,128.58,16.3819]
[1725765393510,45.0,128.64,128.58,16.3819]
[1725765393706,45.0,128.64,128.59,20.0]
[1725765394705,45.0,128.65,128.59,20.0]
[1725765395306,68.36,128.65,128.59,20.0]
[1725765395508,68.36,128.65,128.58,16.3819]
[1725765395905,76.1331,128.65,128.58,16.3819]
[1725765396823,23.36,128.63,128.55,16.3819]
[1725765397001,68.36,128.62,128.56,20.0]
[1725765397610,70.30456193,128.62,128.56,20.0]
[1725765402024,70.30456193,128.62,128.55,16.3819]
[1725765402226,70.30456193,128.62,128.52,16.0893]
[1725765402407,70.30456193,128.62,128.53,20.0]
[1725765405230,23.36,128.6,128.53,20.0]
[1725765405434,45.0,128.59,128.53,20.0]
[1725765407527,1.94478317,128.58,128.53,20.0]
[1725765408339,29.7075,128.58,128.53,20.0]
[1725765408513,45.0,128.57,128.5,20.0]
[1725765410924,45.0,128.57,128.5,30.38085506]
[1725765412343,45.0,128.57,128.52,10.38085506]
[1725765412521,22.6123,128.61,128.53,20.0]
[1725765414038,45.0,128.6,128.53,20.0]
[1725765422725,45.0,128.6,128.53,36.2591]
[1725765425830,45.0,128.6,128.54,10.38085506]
[1725765426026,45.0,128.6,128.55,20.0]
[1725765431439,45.0,128.6,128.54,20.0]
[1725765437632,2.91932815,128.64,128.54,20.0]
[1725765437826,22.4608,128.65,128.56,10.38085506]
[1725765438026,22.4608,128.65,128.57,20.0]
[1725765438733,23.36,128.64,128.57,20.0]
[1725765439250,45.0,128.63,128.57,20.0]
[1725765441455,45.0,128.64,128.58,1.16618082]
[1725765441650,45.0,128.64,128.57,37.61625463]
[1725765441864,45.0,128.64,128.58,1.16592465]
[1725765442344,45.0,128.64,128.58,11.54677971]
[1725765442549,21.0997,128.68,128.59,20.0]
[1725765442854,21.0997,128.68,128.6,1.16538767]
[1725765443671,44.4597,128.68,128.6,1.16538767]
[1725765443874,45.0,128.67,128.6,1.16538767]
[1725765444070,68.36,128.67,128.59,21.16538767]
[1725765444250,68.36,128.67,128.59,20.0]
[1725765446579,45.0,128.67,128.59,20.0]
[1725765446868,21.0997,128.68,128.59,20.0]
[1725765447665,44.4597,128.68,128.59,20.0]
[1725765448164,45.0,128.67,128.59,20.0]
[1725765448846,6.0014,128.68,128.6,10.38085506]
[1725765449054,6.0014,128.68,128.61,20.0]
[1725765449582,6.0014,128.68,128.59,20.0]
[1725765450052,45.0,128.67,128.59,20.0]
[1725765453866,45.0,128.67,128.6,10.38085506]
[1725765454064,45.0,128.67,128.61,20.0]
[1725765455773,45.0,128.67,128.62,15.8167]
[1725765472666,45.0,128.68,128.62,15.8167]
[1725765473168,1.94361965,128.67,128.62,15.8167]
[1725765475477,45.0,128.68,128.62,15.8167]
[1725765480292,25.35073114,128.71,128.62,15.8167]
[1725765480469,32.70453114,128.71,128.62,26.19755506]
[1725765481280,9.34453114,128.71,128.62,26.19755506]
[1725765481482,23.36,128.72,128.62,26.19755506]
[1725765481693,23.36,128.72,128.63,20.0]
[1725765482800,45.0,128.71,128.63,20.0]
[1725765483273,45.0,128.71,128.63,21.55878707]
[1725765483984,45.0,128.71,128.64,1.16369952]
[1725765484193,45.0,128.71,128.63,21.55878707]
[1725765484372,45.0,128.71,128.63,20.0]
[1725765484576,45.0,128.71,128.64,1.16411736]
[1725765484781,45.0,128.71,128.63,20.0]
[1725765485174,68.36,128.71,128.63,20.0]
[1725765485379,8.89655884,128.7,128.62,17.37513384]
[1725765485706,70.30361887,128.69,128.62,17.37513384]
[1725765485871,70.30361887,128.69,128.62,18.93357359]
[1725765486280,70.30361887,128.69,128.62,17.37513384]
[1725765487200,78.07421887,128.69,128.62,17.37513384]
[1725765488692,76.1306,128.69,128.62,17.37513384]
[1725765489299,23.36,128.67,128.62,1.55843384]
[1725765489593,23.36,128.67,128.59,15.6076]
[1725765489594,45.0,128.66,128.6,20.0]
[1725765499404,45.0,128.67,128.6,20.0]
[1725765502495,47.91394734,128.68,128.6,20.0]
[1725765503606,71.27394734,128.68,128.6,20.0]
[1725765505678,47.91394734,128.68,128.6,20.0]
[1725765506304,45.0,128.68,128.6,20.0]
[1725765506490,21.7332,128.7,128.6,30.38085506]
[1725765506697,21.7332,128.7,128.63,15.1922]
[1725765506698,6.5045,128.7,128.63,15.1922]
[1725765508807,45.0,128.69,128.63,15.1922]
[1725765509814,22.3159,128.73,128.64,10.38085506]
[1725765510111,22.3159,128.73,128.65,20.0]
[1725765510485,22.3159,128.73,128.65,21.16343873]
[1725765510706,24.1159,128.73,128.65,21.16343873]
[1725765511080,45.0,128.72,128.65,20.0]
[1725765512912,45.0,128.73,128.65,20.0]